fUSD/lending_fUSD_20250806
["ID","MTS","AMOUNT","RATE_DAILY","PERIOD"]
[377584313,1754448682739,-400.0,0.0003589,14]
[377584314,1754448682749,-1289.03,0.0003589,14]
[377584315,1754448682758,-400.0,0.0003589,14]
[377584316,1754448682767,-532.72,0.0003589,14]
[377584317,1754448682777,-400.0,0.0003589,14]
[377584318,1754448682786,-400.0,0.0003589,14]
[377584319,1754448682796,-400.0,0.0003589,14]
[377584320,1754448682806,-400.0,0.0003589,14]
[377584321,1754448682815,-412.5,0.0003589,14]
[377584322,1754448682825,-1073.41,0.0003589,14]
[377584323,1754448682834,-400.0,0.0003589,14]
[377584324,1754448682844,-400.0,0.0003589,14]
[377584325,1754448682854,-400.0,0.0003589,14]
[377584326,1754448682865,-219.223841,0.0003589,7]
[377584327,1754448682875,-219.223841,0.0003589,7]
[377584328,1754448682884,-400.0,0.0003589,14]
[377584329,1754448682894,-400.0,0.0003589,14]
[377584330,1754448682905,-2539.32,0.0003589,14]
[377584331,1754448682915,-3437.75,0.0003589,14]
[377584332,1754448682925,-219.223841,0.0003589,7]
[377584333,1754448682936,-250.0,0.0003589,14]
[377584334,1754448682945,-219.223841,0.0003589,7]
[377584335,1754448682954,-400.0,0.0003589,14]
[377584336,1754448682964,-3583.37,0.0003589,14]
[377584337,1754448682973,-788.77,0.0003589,14]
[377584338,1754448682983,-2655.03,0.0003589,14]
[377584339,1754448682992,-500.14,0.0003589,14]
[377584340,1754448683002,-151.0,0.0003589,7]
[377584341,1754448683014,-151.0,0.0003589,7]
[377584342,1754448683024,-2735.46,0.0003589,14]
[377584343,1754448683034,-1000.0,0.0003589,30]
[377584344,1754448683044,-400.0,0.0003589,14]
[377584345,1754448683054,-1245.68,0.0003589,14]
[377584346,1754448683064,-400.0,0.0003589,14]
[377584347,1754448683073,-828.5,0.0003589,14]
[377584348,1754448683083,-4387.31,0.0003589,14]
[377584349,1754448683093,-1688.61,0.0003589,14]
[377584350,1754448683102,-151.0,0.0003589,7]
[377584351,1754448683112,-3166.75,0.0003589,14]
[377584352,1754448683123,-151.0,0.0003589,7]
[377584353,1754448683133,-3134.6,0.0003589,14]
[377584354,1754448683143,-400.0,0.0003589,14]
[377584355,1754448683152,-406.24,0.0003589,14]
[377584356,1754448683161,-400.0,0.0003589,14]
[377584357,1754448683171,-735.52,0.0003589,14]
[377584358,1754448683180,-400.0,0.0003589,14]
[377584359,1754448683189,-3216.0,0.0003589,14]
[377584360,1754448683199,-2255.41,0.0003589,14]
[377584361,1754448683208,-2297.5,0.0003589,14]
[377584362,1754448683218,-461.51991749,0.0003589,14]
[377584363,1754448683228,-2750.06,0.0003589,14]
[377584364,1754448683237,-741.97,0.0003589,14]
[377584365,1754448683246,-1206.25,0.0003589,14]
[377584366,1754448683257,-654.96,0.0003589,14]
[377584367,1754448683266,-1381.51,0.0003589,14]
[377584368,1754448683275,-74281.09,0.0003589,14]
[377584369,1754448683285,-2322.06,0.0003589,14]
[377584370,1754448683295,-400.0,0.0003589,14]
[377584371,1754448683304,-841.14,0.0003589,14]
[377584372,1754448683314,-286.72155279,0.0003589,14]
[377584373,1754448683323,-1570.84,0.0003589,14]
[377584374,1754448683333,-1828.82,0.0003589,14]
[377584375,1754448683342,-400.0,0.0003589,14]
[377584376,1754448683352,-1544.56,0.0003589,14]
[377584377,1754448683361,-400.0,0.0003589,14]
[377584378,1754448683370,-400.0,0.0003589,14]
[377584379,1754448683380,-400.0,0.0003589,14]
[377584380,1754448683389,-400.0,0.0003589,14]
[377584381,1754448683398,-761.7,0.0003589,14]
[377584382,1754448683408,-400.0,0.0003589,14]
[377584383,1754448683417,-519.39,0.0003589,14]
[377584384,1754448683428,-400.0,0.0003589,14]
[377584385,1754448683437,-400.0,0.0003589,14]
[377584386,1754448683447,-1492.94,0.0003589,14]
[377584387,1754448683456,-400.0,0.0003589,14]
[377584388,1754448683466,-434.35,0.0003589,14]
[377584389,1754448683475,-400.0,0.0003589,14]
[377584390,1754448683485,-2875.37,0.0003589,14]
[377584391,1754448683495,-400.0,0.0003589,14]
[377584392,1754448683505,-400.0,0.0003589,14]
[377584393,1754448683514,-2258.55,0.0003589,14]
[377584394,1754448683523,-2855.56,0.0003589,14]
[377584395,1754448683532,-1961.2,0.0003589,14]
[377584396,1754448683542,-3362.96,0.0003589,14]
[377584397,1754448683551,-400.0,0.0003589,14]
[377584398,1754448683560,-833.52,0.0003589,14]
[377584399,1754448683569,-2733.42,0.0003589,14]
[377584400,1754448683579,-1888.87,0.0003589,14]
[377584401,1754448683588,-400.0,0.0003589,14]
[377584402,1754448683597,-400.0,0.0003589,14]
[377584403,1754448683607,-400.0,0.0003589,14]
[377584404,1754448683616,-748.99233873,0.0003589,14]
[377584405,1754448683625,-400.0,0.0003589,14]
[377584406,1754448683635,-400.0,0.0003589,14]
[377584407,1754448683644,-2484.35,0.0003589,14]
[377584408,1754448683654,-1187.63,0.0003589,14]
[377584409,1754448683663,-428.48,0.0003589,14]
[377584410,1754448683673,-400.0,0.0003589,7]
[377584411,1754448683682,-2248.43,0.0003589,14]
[377584412,1754448683692,-406.59,0.0003589,14]
[377584413,1754448683701,-536.89721597,0.0003589,14]
[377584414,1754448683710,-455.67,0.0003589,14]
[377584415,1754448683720,-409.76,0.0003589,14]
[377584416,1754448683729,-537.84,0.0003589,14]
[377584417,1754448683738,-400.0,0.0003589,14]
[377584418,1754448683748,-1862.83,0.0003589,14]
[377584419,1754448683757,-1987.91,0.0003589,14]
[377584420,1754448683767,-1229.19,0.0003589,14]
[377584421,1754448683776,-725.39,0.0003589,14]
[377584422,1754448683786,-400.0,0.0003589,14]
[377584423,1754448683795,-2156.58,0.0003589,14]
[377584424,1754448683804,-400.0,0.0003589,14]
[377584425,1754448683814,-1281.96,0.0003589,14]
[377584426,1754448683824,-2047.91,0.0003589,14]
[377584427,1754448683833,-551.67,0.0003589,14]
[377584428,1754448683843,-400.0,0.0003589,14]
[377584429,1754448683853,-1310.3,0.0003589,14]
[377584430,1754448683864,-400.0,0.0003589,14]
[377584431,1754448683874,-450.47,0.0003589,14]
[377584432,1754448683883,-463.45330327,0.0003589,14]
[377584433,1754448683893,-2884.45,0.0003589,14]
[377584434,1754448683903,-400.0,0.0003589,14]
[377584435,1754448683913,-1962.72,0.0003589,14]
[377584436,1754448683923,-400.0,0.0003589,14]
[377584437,1754448683940,-400.0,0.0003589,14]
[377584438,1754448683951,-400.0,0.0003589,14]
[377584439,1754448683960,-1041.11,0.0003589,14]
[377584440,1754448683970,-400.0,0.0003589,14]
[377584441,1754448683979,-2626.5,0.0003589,14]
[377584442,1754448683989,-1939.4,0.0003589,14]
[377584443,1754448683998,-743.81,0.0003589,14]
[377584444,1754448684007,-401.18399194,0.0003589,14]
[377584445,1754448684017,-1720.47,0.0003589,14]
[377584446,1754448684026,-1253.31,0.0003589,14]
[377584447,1754448684035,-400.0,0.0003589,14]
[377584448,1754448684045,-833.02,0.0003589,14]
[377584449,1754448684054,-2527.58,0.0003589,14]
[377584450,1754448684063,-400.0,0.0003589,14]
[377584451,1754448684073,-6570.38,0.0003589,14]
[377584452,1754448684082,-400.0,0.0003589,14]
[377584453,1754448684092,-1233.26,0.0003589,14]
[377584454,1754448684102,-677.09,0.0003589,14]
[377584455,1754448684111,-2742.82,0.0003589,14]
[377584456,1754448684121,-400.0,0.0003589,2]
[377584457,1754448684131,-1089.73,0.0003589,14]
[377584458,1754448684140,-1510.11,0.0003589,14]
[377584459,1754448684149,-2032.65,0.0003589,14]
[377584460,1754448684158,-2514.73,0.0003589,14]
[377584461,1754448684169,-2050.4,0.0003589,14]
[377584462,1754448684178,-761.42,0.0003589,14]
[377584463,1754448684188,-479.36,0.0003589,14]
[377584464,1754448684197,-400.0,0.0003589,14]
[377584465,1754448684206,-485.39,0.0003589,14]
[377584466,1754448684216,-400.0,0.0003589,14]
[377584467,1754448684226,-401.42656142,0.0003589,14]
[377584468,1754448684236,-605.06,0.0003589,14]
[377584469,1754448684245,-400.0,0.0003589,14]
[377584470,1754448684254,-953.45,0.0003589,14]
[377584471,1754448684265,-402.34090047,0.0003589,14]
[377584472,1754448684274,-2555.58,0.0003589,14]
[377584473,1754448684283,-400.0,0.0003589,14]
[377584474,1754448684292,-814.86,0.0003589,14]
[377584475,1754448684301,-4421.93,0.0003589,14]
[377584476,1754448684310,-1009.38,0.0003589,14]
[377584477,1754448684320,-2230.29,0.0003589,14]
[377584478,1754448684329,-400.0,0.0003589,14]
[377584479,1754448684338,-2529.46,0.0003589,14]
[377584480,1754448684347,-421.21,0.0003589,14]
[377584481,1754448684357,-2402.56,0.0003589,14]
[377584482,1754448684366,-3180.14,0.0003589,14]
[377584483,1754448684375,-400.0,0.0003589,14]
[377584484,1754448684385,-2007.28,0.0003589,14]
[377584485,1754448684395,-400.0,0.0003589,14]
[377584486,1754448684405,-400.0,0.0003589,14]
[377584487,1754448684414,-584.03,0.0003589,14]
[377584488,1754448684424,-400.0,0.0003589,14]
[377584489,1754448684433,-2184.0,0.0003589,14]
[377584490,1754448684443,-759.09,0.0003589,14]
[377584491,1754448684452,-400.0,0.0003589,14]
[377584492,1754448684462,-679.71,0.0003589,14]
[377584493,1754448684827,-3185.2,0.0003589,14]
[377584494,1754448684862,-795.77,0.0003589,14]
[377584495,1754448684872,-812.95,0.0003589,14]
[377584496,1754448684881,-400.0,0.0003589,14]
[377584497,1754448684891,-1680.57,0.0003589,14]
[377584498,1754448684902,-2432.32,0.0003589,14]
[377584499,1754448684911,-478.98,0.0003589,14]
[377584500,1754448684922,-400.0,0.0003589,14]
[377584501,1754448684932,-400.0,0.0003589,14]
[377584502,1754448684943,-971.83,0.0003589,14]
[377584503,1754448684952,-2915.89,0.0003589,14]
[377584504,1754448684962,-653.74,0.0003589,14]
[377584505,1754448684971,-1940.76,0.0003589,14]
[377584506,1754448684980,-392.88415787,0.0003589,14]
[377584507,1754448684990,-400.0,0.0003589,14]
[377584508,1754448684999,-400.0,0.0003589,14]
[377584509,1754448685009,-408.83,0.0003589,14]
[377584510,1754448685019,-1082.53,0.0003589,14]
[377584511,1754448685029,-992.11,0.0003589,14]
[377584512,1754448685039,-2286.88,0.0003589,14]
[377584513,1754448685048,-1599.41,0.0003589,14]
[377584514,1754448685058,-2661.52,0.0003589,14]
[377584515,1754448685067,-1019.92,0.0003589,14]
[377584516,1754448685076,-816.39,0.0003589,14]
[377584517,1754448685086,-1313.46,0.0003589,14]
[377584518,1754448685096,-400.0,0.0003589,14]
[377584519,1754448685106,-2443.54,0.0003589,14]
[377584520,1754448685117,-1013.74,0.0003589,14]
[377584521,1754448685126,-2142.87,0.0003589,14]
[377584522,1754448685135,-400.0,0.0003589,14]
[377584523,1754448685145,-2175.59,0.0003589,14]
[377584524,1754448685154,-3089.75,0.0003589,14]
[377584525,1754448685163,-3761.33,0.0003589,14]
[377584526,1754448685173,-1040.53,0.0003589,14]
[377584527,1754448685182,-1315.11,0.0003589,14]
[377584528,1754448685191,-400.0,0.0003589,14]
[377584529,1754448685200,-1546.2,0.0003589,14]
[377584530,1754448685210,-1867.43,0.0003589,14]
[377584531,1754448685219,-2061.99,0.0003589,14]
[377584532,1754448685229,-1047.25,0.0003589,14]
[377584533,1754448685239,-400.0,0.0003589,14]
[377584534,1754448685249,-400.0,0.0003589,14]
[377584535,1754448685259,-1432.92,0.0003589,14]
[377584536,1754448685269,-400.0,0.0003589,14]
[377584537,1754448685278,-400.0,0.0003589,14]
[377584538,1754448685288,-1402.25,0.0003589,14]
[377584539,1754448685297,-400.0,0.0003589,14]
[377584540,1754448685306,-1175.98,0.0003589,14]
[377584541,1754448685316,-828.22,0.0003589,14]
[377584542,1754448685326,-500.0,0.0003589,31]
[377584543,1754448685335,-478.88,0.0003589,14]
[377584544,1754448685344,-400.0,0.0003589,14]
[377584545,1754448685353,-732.62,0.0003589,14]
[377584546,1754448685363,-813.13,0.0003589,14]
[377584547,1754448685372,-431.16,0.0003589,14]
[377584548,1754448685381,-1451.6,0.0003589,14]
[377584549,1754448685391,-453.4,0.0003589,14]
[377584550,1754448685400,-2113.48,0.0003589,14]
[377584551,1754448685409,-400.0,0.0003589,14]
[377584552,1754448685419,-2192.19,0.0003589,14]
[377584553,1754448685428,-682.09,0.0003589,14]
[377584554,1754448685438,-3720.93,0.0003589,14]
[377584555,1754448685447,-578.92,0.0003589,14]
[377584556,1754448685457,-1902.77,0.0003589,14]
[377584557,1754448685466,-1870.07,0.0003589,14]
[377584558,1754448685475,-2903.16,0.0003589,14]
[377584559,1754448685486,-449.08,0.0003589,7]
[377584560,1754448685495,-400.0,0.0003589,14]
[377584561,1754448685504,-400.0,0.0003589,14]
[377584562,1754448685514,-744.99,0.0003589,14]
[377584563,1754448685523,-1145.83,0.0003589,14]
[377584564,1754448685532,-1448.11,0.0003589,14]
[377584565,1754448685542,-493.73695504,0.0003589,14]
[377584566,1754448685551,-2132.59,0.0003589,14]
[377584567,1754448685560,-3679.16,0.0003589,14]
[377584568,1754448685570,-400.0,0.0003589,14]
[377584569,1754448685579,-2007.5,0.0003589,14]
[377584570,1754448685588,-400.0,0.0003589,14]
[377584571,1754448685597,-2716.46,0.0003589,14]
[377584572,1754448685606,-2062.82,0.0003589,14]
[377584573,1754448685616,-3514.4,0.0003589,14]
[377584574,1754448685625,-400.0,0.0003589,14]
[377584575,1754448685635,-1179.27,0.0003589,14]
[377584576,1754448685644,-1366.96,0.0003589,14]
[377584577,1754448685653,-534.71798598,0.0003589,14]
[377584578,1754448685663,-400.0,0.0003589,14]
[377584579,1754448685672,-1611.49,0.0003589,14]
[377584580,1754448685682,-400.0,0.0003589,14]
[377584581,1754448685691,-400.0,0.0003589,14]
[377584582,1754448685701,-2707.72,0.0003589,14]
[377584583,1754448685710,-460.8,0.0003589,14]
[377584584,1754448685720,-2012.91,0.0003589,14]
[377584585,1754448685730,-1251.76,0.0003589,14]
[377584586,1754448685739,-2266.27,0.0003589,14]
[377584587,1754448685748,-604.96,0.0003589,14]
[377584588,1754448685759,-400.0,0.0003589,14]
[377584589,1754448685768,-400.0,0.0003589,14]
[377584590,1754448685778,-3442.72,0.0003589,14]
[377584591,1754448685787,-400.0,0.0003589,14]
[377584592,1754448685797,-400.0,0.0003589,14]
[377584593,1754448685807,-801.6,0.0003589,14]
[377584594,1754448685816,-580.15,0.0003589,14]
[377584595,1754448685826,-606.74,0.0003589,14]
[377584596,1754448685835,-400.0,0.0003589,14]
[377584597,1754448685845,-3610.57,0.0003589,14]
[377584598,1754448685857,-2698.14,0.0003589,14]
[377584599,1754448685867,-881.76,0.0003589,14]
[377584600,1754448685876,-1152.57,0.0003589,14]
[377584601,1754448685885,-958.68,0.0003589,14]
[377584602,1754448685895,-1967.92,0.0003589,14]
[377584603,1754448685905,-400.0,0.0003589,14]
[377584604,1754448685914,-2348.84,0.0003589,14]
[377584605,1754448685924,-826.11,0.0003589,14]
[377584606,1754448685935,-826.95,0.0003589,14]
[377584607,1754448685945,-2097.04,0.0003589,14]
[377584608,1754448685955,-1738.83,0.0003589,14]
[377584609,1754448685964,-468.56,0.0003589,14]
[377584610,1754448685974,-400.0,0.0003589,14]
[377584611,1754448685983,-1550.41,0.0003589,14]
[377584612,1754448685993,-400.0,0.0003589,14]
[377584613,1754448686002,-986.73,0.0003589,14]
[377584614,1754448686011,-400.0,0.0003589,14]
[377584615,1754448686022,-2945.22,0.0003589,14]
[377584616,1754448686032,-400.0,0.0003589,14]
[377584617,1754448686041,-2061.05,0.0003589,14]
[377584618,1754448686050,-2744.57,0.0003589,14]
[377584619,1754448686060,-1971.84,0.0003589,14]
[377584620,1754448686069,-522.01,0.0003589,14]
[377584621,1754448686079,-2216.79,0.0003589,14]
[377584622,1754448686088,-1605.08,0.0003589,14]
[377584623,1754448686098,-1022.7,0.0003589,14]
[377584624,1754448686108,-195.17845748,0.0003589,14]
[377584625,1754448686118,-883.72,0.0003589,14]
[377584626,1754448686128,-2625.94,0.0003589,14]
[377584627,1754448686137,-400.0,0.0003589,14]
[377584628,1754448686146,-400.0,0.0003589,14]
[377584629,1754448686156,-1176.86,0.0003589,14]
[377584630,1754448686165,-2717.6,0.0003589,14]
[377584631,1754448686175,-400.0,0.0003589,14]
[377584632,1754448686184,-2001.07,0.0003589,14]
[377584633,1754448686194,-1132.6,0.0003589,14]
[377584634,1754448686203,-1708.89,0.0003589,14]
[377584635,1754448686212,-2209.33,0.0003589,14]
[377584636,1754448686222,-1659.02,0.0003589,14]
[377584637,1754448686231,-2090.44,0.0003589,14]
[377584638,1754448686241,-400.0,0.0003589,14]
[377584639,1754448686250,-2337.97,0.0003589,14]
[377584640,1754448686259,-1513.53,0.0003589,14]
[377584641,1754448686269,-1295.16,0.0003589,14]
[377584642,1754448686279,-1663.17,0.0003589,14]
[377584643,1754448686290,-2361.68,0.0003589,14]
[377584644,1754448686299,-425.69,0.0003589,14]
[377584645,1754448686308,-949.45,0.0003589,14]
[377584646,1754448686318,-400.0,0.0003589,14]
[377584647,1754448686328,-2974.22,0.0003589,14]
[377584648,1754448686337,-468.15,0.0003589,14]
[377584649,1754448686347,-702.26,0.0003589,14]
[377584650,1754448686356,-1198.3,0.0003589,14]
[377584651,1754448686366,-1740.13,0.0003589,14]
[377584652,1754448686376,-2095.59,0.0003589,14]
[377584653,1754448686385,-1148.8,0.0003589,14]
[377584654,1754448686395,-954.12,0.0003589,14]
[377584655,1754448686404,-467.46,0.0003589,14]
[377584656,1754448686414,-2962.89,0.0003589,14]
[377584657,1754448686422,-2021.48,0.0003589,14]
[377584658,1754448686432,-662.22,0.0003589,14]
[377584659,1754448686441,-2546.61,0.0003589,14]
[377584660,1754448686451,-2356.45,0.0003589,14]
[377584661,1754448686461,-504.61,0.0003589,14]
[377584662,1754448686470,-406.95375219,0.0003589,14]
[377584663,1754448686480,-2575.51,0.0003589,14]
[377584664,1754448686489,-492.5010773,0.0003589,14]
[377584665,1754448686499,-2130.93,0.0003589,14]
[377584666,1754448686508,-400.0,0.0003589,14]
[377584667,1754448686518,-423.2,0.0003589,14]
[377584668,1754448686528,-400.0,0.0003589,14]
[377584669,1754448686538,-400.0,0.0003589,14]
[377584670,1754448686547,-856.83,0.0003589,14]
[377584671,1754448686560,-1766.95,0.0003589,14]
[377584672,1754448686569,-400.0,0.0003589,14]
[377584673,1754448686579,-400.0,0.0003589,14]
[377584674,1754448686589,-400.0,0.0003589,14]
[377584675,1754448686598,-3248.58,0.0003589,14]
[377584676,1754448686607,-5306.84,0.0003589,14]
[377584677,1754448686617,-259.51429607,0.0003589,14]
[377584678,1754448686628,-386.41,0.0003589,14]
[377584679,1754448686637,-465.15936859,0.0003589,14]
[377584680,1754448686647,-496.21,0.0003589,14]
[377584681,1754448686656,-547.97,0.0003589,14]
[377584682,1754448686665,-888.56,0.0003589,14]
[377584683,1754448686674,-3016.17,0.0003589,14]
[377584684,1754448686684,-727.35,0.0003589,14]
[377584685,1754448686693,-2668.39,0.0003589,14]
[377584686,1754448686702,-400.0,0.0003589,14]
[377584687,1754448686712,-3791.14,0.0003589,14]
[377584688,1754448686721,-400.0,0.0003589,14]
[377584689,1754448686731,-605.14,0.0003589,14]
[377584690,1754448686741,-2054.01,0.0003589,14]
[377584691,1754448686752,-975.71,0.0003589,14]
[377584692,1754448686763,-400.0,0.0003589,14]
[377584693,1754448686773,-400.0,0.0003589,14]
[377584694,1754448686782,-400.0,0.0003589,14]
[377584695,1754448686792,-3485.41,0.0003589,14]
[377584696,1754448686802,-2009.81,0.0003589,14]
[377584697,1754448686812,-2179.98,0.0003589,14]
[377584698,1754448686822,-400.0,0.0003589,14]
[377584699,1754448686832,-400.0,0.0003589,14]
[377584700,1754448686842,-400.0,0.0003589,14]
[377584701,1754448686854,-400.0,0.0003589,14]
[377584702,1754448686873,-1920.97,0.0003589,14]
[377584703,1754448686883,-1517.52,0.0003589,14]
[377584704,1754448686892,-1388.31,0.0003589,14]
[377584705,1754448686902,-957.04,0.0003589,14]
[377584706,1754448686912,-400.0,0.0003589,14]
[377584707,1754448686921,-400.0,0.0003589,2]
[377584708,1754448686930,-615.01,0.0003589,14]
[377584709,1754448686940,-2558.14,0.0003589,14]
[377584710,1754448686950,-1537.42,0.0003589,14]
[377584711,1754448686959,-1497.84,0.0003589,14]
[377584712,1754448686969,-2660.98,0.0003589,14]
[377584713,1754448686978,-410.84,0.0003589,14]
[377584714,1754448686988,-1672.02,0.0003589,14]
[377584715,1754448686997,-1561.14,0.0003589,14]
[377584716,1754448687006,-400.0,0.0003589,14]
[377584717,1754448687015,-1718.51,0.0003589,14]
[377584718,1754448687025,-2448.42,0.0003589,14]
[377584719,1754448687035,-400.0,0.0003589,14]
[377584720,1754448687045,-2354.23,0.0003589,14]
[377584721,1754448687054,-2286.3,0.0003589,14]
[377584722,1754448687063,-2817.66,0.0003589,14]
[377584723,1754448687073,-1193.12,0.0003589,14]
[377584724,1754448687083,-818.29,0.0003589,2]
[377584725,1754448687093,-400.0,0.0003589,14]
[377584726,1754448687102,-400.0,0.0003589,14]
[377584727,1754448687112,-400.0,0.0003589,14]
[377584728,1754448687121,-400.0,0.0003589,14]
[377584729,1754448687131,-2306.54,0.0003589,14]
[377584730,1754448687140,-12433.87,0.0003589,14]
[377584731,1754448687150,-775.18,0.0003589,14]
[377584732,1754448687159,-400.0,0.0003589,14]
[377584733,1754448687279,-1789.7,0.0003589,14]
[377584734,1754448687289,-751.56,0.0003589,14]
[377584735,1754448687299,-200.0,0.000359,13]
[377584736,1754448687308,-150.0,0.00035904,2]
[377584737,1754448687317,-150.0,0.00035914,2]
[377584738,1754448687326,-150.0,0.00035919,2]
[377584739,1754448687335,-1000.0,0.00035921,7]
[377584740,1754448687344,-151.02516086,0.00035927,2]
[377584741,1754448687354,-150.0,0.00035948,2]
[377584742,1754448687363,-150.0,0.0003597,2]
[377584743,1754448687372,-150.0,0.00035972,2]
[377584744,1754448687381,-151.02516086,0.00035996,2]
[377584745,1754448687390,-25580.16,0.00036,45]
[377584746,1754448687399,-900.0,0.00036,37]
[377584747,1754448687408,-1420.0195495,0.00036,2]
[377584748,1754448687417,-300.0,0.00036,120]
[377584749,1754448687426,-25537.7,0.00036,14]
[377584750,1754448687435,-3806.48,0.00036,14]
[377584751,1754448687444,-1117.7,0.00036,30]
[377584752,1754448687453,-150.0,0.00036019,2]
[377584753,1754448687462,-400.5,0.00036025,6]
[377584754,1754448687471,-151.02516086,0.00036064,2]
[377584755,1754448687480,-150.0,0.00036076,2]
[377584756,1754448687489,-150.0,0.00036089,2]
[377584757,1754448687498,-150.0,0.00036093,2]
[377584758,1754448687507,-150.0,0.00036099,2]
[377584759,1754448687517,-159.04855533,0.00036102,2]
[377584760,1754448687526,-150.0,0.00036107,2]
[377584761,1754448687535,-1000.0,0.00036108,7]
[377584762,1754448687544,-150.0,0.00036117,2]
[377584763,1754448687553,-150.0,0.0003613,2]
[377584764,1754448687562,-261.79,0.00036137,2]
[377584765,1754448687571,-165.31,0.00036137,2]
[377584766,1754448687581,-150.0,0.00036139,2]
[377584767,1754448687590,-482.64,0.00036149,2]
[377584768,1754448687599,-795.91,0.00036149,2]
[377584769,1754448687608,-466.67,0.00036149,2]
[377584770,1754448687618,-795.91,0.00036149,2]
[377584771,1754448687627,-821.75,0.00036149,2]
[377584772,1754448687636,-222.59,0.00036149,2]
[377584773,1754448687645,-150.0,0.00036153,2]
[377584774,1754448687655,-150.0,0.00036157,2]
[377584775,1754448687665,-500.0,0.00036157,3]
[377584776,1754448687675,-150.0,0.00036158,2]
[377584777,1754448687683,-300.0,0.00036163,10]
[377584778,1754448687693,-151.0,0.00036163,7]
[377584779,1754448687702,-151.0,0.00036163,7]
[377584780,1754448687711,-151.0,0.00036163,7]
[377584781,1754448687720,-219.419098,0.00036163,7]
[377584782,1754448687729,-152.199088,0.00036163,7]
[377584783,1754448687739,-1016.03,0.00036163,14]
[377584784,1754448687747,-1016.03,0.00036163,14]
[377584785,1754448687757,-1016.03,0.00036163,14]
[377584786,1754448687767,-1016.03,0.00036163,14]
[377584787,1754448687776,-1016.03,0.00036163,14]
[377584788,1754448687785,-1016.03,0.00036163,14]
[377584789,1754448687794,-1016.03,0.00036163,14]
[377584790,1754448687804,-1016.03,0.00036163,14]
[377584791,1754448687814,-1016.03,0.00036163,14]
[377584792,1754448687823,-1016.03164994,0.00036163,14]
[377584793,1754448687833,-151.0,0.00036163,7]
[377584794,1754448687843,-540.73,0.00036163,14]
[377584795,1754448687854,-540.73,0.00036163,14]
[377584796,1754448687865,-540.73,0.00036163,14]
[377584797,1754448687875,-540.73,0.00036163,14]
[377584798,1754448687884,-540.73,0.00036163,14]
[377584799,1754448687893,-540.73,0.00036163,14]
[377584800,1754448687903,-540.73,0.00036163,14]
[377584801,1754448687912,-540.73,0.00036163,14]
[377584802,1754448687921,-540.73,0.00036163,14]
[377584803,1754448687931,-540.95947887,0.00036163,14]
[377584804,1754448687940,-300.0,0.00036163,10]
[377584805,1754448687949,-300.0,0.00036163,10]
[377584806,1754448687959,-300.0,0.00036163,10]
[377584807,1754448687968,-258.02831829,0.00036163,10]
[377584808,1754448687977,-500.0,0.00036163,14]
[377584809,1754448687987,-500.0,0.00036163,14]
[377584810,1754448687995,-500.0,0.00036163,14]
[377584811,1754448688005,-500.0,0.00036163,14]
[377584812,1754448688014,-1377.85,0.00036163,14]